bitfinex-derivatives/quotes_ETHF0:USTF0_20250701
["timestamp","ask_amount","ask_price","bid_price","bid_amount"]
[1751330078147,0.80514,2483.4,2483.3,8.79789]
[1751330078754,0.80512,2483.5,2483.3,8.79789]
[1751330078956,0.80514,2483.4,2483.3,9.81304]
[1751330079857,0.80513,2483.5,2483.4,0.80513]
[1751330080058,0.80513,2483.5,2483.4,0.86513]
[1751330080360,0.80513,2483.5,2483.4,8.85789]
[1751330080859,5.80513,2483.5,2483.4,8.79789]
[1751330081060,7.21093,2483.5,2483.4,8.79789]
[1751330082257,2.21093,2483.5,2483.4,8.79789]
[1751330082563,27.26893,2483.5,2483.4,8.79789]
[1751330084450,32.26893,2483.5,2483.4,8.79789]
[1751330084651,35.45055737,2483.5,2483.4,8.79789]
[1751330085062,27.26893,2483.5,2483.4,8.79789]
[1751330085258,27.26793,2483.5,2483.4,8.79789]
[1751330085654,2.21093,2483.5,2483.4,8.79789]
[1751330085859,27.27393,2483.5,2483.4,8.79789]
[1751330086562,2.21093,2483.5,2483.4,9.60303]
[1751330086761,27.26493,2483.5,2483.4,9.60303]
[1751330086969,25.054,2483.5,2483.4,9.61303]
[1751330087263,29.0669,2483.6,2483.5,0.80511]
[1751330087457,28.2598,2483.6,2483.5,0.94511]
[1751330087768,3.2078,2483.6,2483.5,0.94511]
[1751330088660,3.2078,2483.9,2483.6,0.80508]
[1751330088864,3.2078,2483.9,2483.8,0.80501]
[1751330089061,3.2078,2483.9,2483.8,0.97501]
[1751330090066,25.88092,2484.1,2484.0,0.80492]
[1751330090564,0.80498,2484.0,2483.9,0.80497]
[1751330090760,0.80498,2484.0,2483.9,0.94497]
[1751330091162,25.87693,2484.1,2484.0,0.80495]
[1751330091759,0.80498,2483.9,2483.8,9.60288]
[1751330091960,0.80497,2484.0,2483.9,0.80497]
[1751330092160,25.067,2484.1,2483.9,0.13]
[1751330092360,25.067,2484.1,2484.0,0.80495]
[1751330092967,25.067,2484.1,2483.9,0.80496]
[1751330093162,0.80496,2484.0,2483.9,0.04]
[1751330093860,2.10676,2484.0,2483.9,0.04]
[1751330095269,2.10676,2484.0,2483.9,8.83789]
[1751330095668,2.10676,2484.0,2483.9,8.79789]
[1751330095965,2.10676,2484.0,2483.9,9.60287]
[1751330096365,25.84796,2484.0,2483.9,9.64287]
[1751330096968,4.0127,2484.2,2484.1,0.80491]
[1751330097169,29.0557,2484.2,2484.1,0.87491]
[1751330098066,4.0127,2484.2,2484.1,0.87491]
[1751330098367,29.0557,2484.2,2484.1,0.07]
[1751330099469,28.2508,2484.2,2484.1,0.82491]
[1751330099965,4.7604,2484.5,2484.1,0.02]
[1751330100168,3.18162737,2484.7,2484.3,2.01213]
[1751330100372,25.057,2484.9,2484.3,2.72]
[1751330100672,3.2078,2484.8,2484.6,0.80474]
[1751330100869,5.3364,2484.8,2484.7,0.80472]
[1751330101261,0.80472,2484.7,2484.3,1.3515]
[1751330101468,0.80475,2484.6,2484.5,0.80476]
[1751330101667,0.80475,2484.6,2484.5,1.2]
[1751330102071,0.80475,2484.6,2484.5,2.00479]
[1751330102368,0.80475,2484.6,2484.5,1.2]
[1751330104374,25.038,2484.8,2484.7,0.8047]
[1751330104675,29.0504,2485.1,2485.0,0.80462]
[1751330104867,29.05039,2485.1,2485.0,0.80462]
[1751330105062,3.2078,2485.1,2485.0,0.80462]
[1751330105364,3.2078,2485.4,2485.0,8.81789]
[1751330105565,4.0123,2485.4,2485.3,0.80453]
[1751330105773,0.80448,2485.5,2485.4,0.80449]
[1751330105968,0.80448,2485.5,2485.4,1.55099]
[1751330106164,25.84648,2485.5,2485.4,1.55099]
[1751330106569,25.84648,2485.5,2485.4,0.7465]
[1751330106874,25.84648,2485.5,2485.2,3.2078]
[1751330107064,0.80453,2485.3,2485.2,1.28]
[1751330107975,0.80456,2485.2,2485.1,0.7557]
[1751330108268,0.80455,2485.3,2485.1,2.47029]
[1751330108468,0.80455,2485.3,2485.2,0.80456]
[1751330108668,3.2078,2485.4,2485.2,0.80456]
[1751330108972,0.80453,2485.3,2485.2,0.80456]
[1751330109465,0.80456,2485.2,2485.1,1.56027]
[1751330109670,0.80456,2485.2,2485.1,2.49027]
[1751330110175,0.80455,2485.3,2485.2,0.80455]
[1751330110379,0.80455,2485.3,2485.2,0.85455]
[1751330110564,0.80452,2485.4,2485.3,0.80452]
[1751330110876,0.80448,2485.5,2485.4,0.80448]
[1751330111070,0.80446,2485.5,2485.4,0.09]
[1751330111868,2.18926,2485.5,2485.4,0.09]
[1751330112374,0.80456,2485.2,2485.1,9.55359]
[1751330112675,3.2078,2485.4,2485.1,10.52359]
[1751330112874,0.80455,2485.3,2485.1,10.52359]
[1751330113172,0.80455,2485.3,2485.2,0.80456]
[1751330113378,0.80456,2485.2,2485.1,10.35818]
[1751330113570,0.80456,2485.2,2485.1,11.88818]
[1751330113973,0.80455,2485.3,2485.2,0.80454]
[1751330114174,0.80455,2485.3,2485.2,1.56]
[1751330114378,0.80455,2485.3,2485.2,5.57236]
[1751330114578,0.8045,2485.5,2485.4,0.80447]
[1751330114878,0.80453,2485.4,2485.3,0.80451]
[1751330115078,0.80453,2485.4,2485.3,2.89451]
[1751330115376,0.80448,2485.5,2485.4,0.80447]
[1751330115576,0.80448,2485.5,2485.4,0.89447]
[1751330115965,0.80448,2485.5,2485.4,0.09]
[1751330116677,0.80449,2485.4,2485.3,9.60242]
[1751330116878,0.80449,2485.4,2485.3,11.66242]
[1751330118474,0.80449,2485.5,2485.4,0.80448]
[1751330118671,0.7836,2485.9,2485.8,0.80436]
[1751330118874,2.1265,2486.2,2485.8,6.324364]
[1751330119067,2.93074,2486.2,2486.1,0.80427]
[1751330119269,0.80429,2486.1,2485.9,0.7727]
[1751330119468,1.361,2486.0,2485.9,0.80433]
[1751330119770,0.7655,2486.2,2486.1,0.80427]
[1751330120076,3.2078,2486.6,2486.3,2.01051]
[1751330120279,3.2078,2486.6,2486.5,5.198504]
[1751330120474,3.2078,2486.6,2486.5,7.438504]
[1751330120671,3.2078,2486.9,2486.8,0.80404]
[1751330120980,21.19580192,2487.6,2487.1,0.80394]
[1751330120981,3.2078,2487.2,2487.1,0.80394]
[1751330121181,3.2078,2487.2,2487.1,3.06394]
[1751330121379,3.2078,2487.8,2487.7,0.80373]
[1751330121580,3.2078,2487.8,2487.4,11.633]
[1751330121778,0.80377,2487.7,2487.4,0.80382]
[1751330122076,1.4104,2487.7,2487.2,11.633]
[1751330122281,3.2078,2487.8,2487.4,4.394364]
[1751330122483,3.2078,2487.8,2487.7,0.80375]
[1751330122683,3.2078,2487.8,2487.7,2.88375]
[1751330123183,3.2078,2487.8,2487.7,7.278114]
[1751330123481,3.2078,2488.5,2487.7,6.474364]
[1751330123677,0.80361,2488.2,2487.9,4.01146]
[1751330123877,0.80361,2488.2,2487.9,7.61146]
[1751330124176,1.3303,2488.3,2487.9,6.8078]
[1751330124177,0.80365,2488.0,2487.9,6.8078]
[1751330124376,0.80363,2488.1,2487.9,6.8078]
[1751330124574,0.80359,2488.2,2487.9,7.61148]
[1751330124777,1.3303,2488.3,2487.9,6.8078]
[1751330124982,3.2078,2488.5,2488.0,4.394364]
[1751330125179,0.80355,2488.4,2488.1,0.80361]
[1751330125379,3.2078,2488.8,2488.3,8.405714]
[1751330125582,0.80352,2488.5,2488.3,6.2478]
[1751330125778,1.3303,2488.7,2488.3,6.2478]
[1751330125985,0.80349,2488.6,2488.4,0.80351]
[1751330126287,1.3303,2488.7,2488.4,2.0]
[1751330126480,1.3303,2488.7,2488.2,4.394364]
[1751330126785,0.80355,2488.4,2488.2,10.044364]
[1751330126983,1.3303,2488.7,2488.4,0.80351]
[1751330127285,2.13375,2488.7,2488.4,2.81351]
[1751330127486,0.80349,2488.5,2488.4,2.01]
[1751330127685,1.3303,2488.7,2488.3,3.2078]
[1751330127890,0.80352,2488.4,2488.3,8.8378]
[1751330128386,1.3303,2488.7,2488.3,8.8378]
[1751330128993,0.80349,2488.6,2488.4,0.80351]
[1751330129181,0.80351,2488.5,2488.4,2.86]
[1751330130288,0.80351,2488.5,2488.4,11.65789]
[1751330131085,0.80351,2488.5,2488.4,8.79789]
[1751330131385,0.80351,2488.5,2488.4,11.17789]
[1751330131778,0.80341,2488.8,2488.4,15.572254]
[1751330132086,0.80341,2488.8,2488.6,4.01125]
[1751330132286,5.1001,2489.1,2488.8,0.80337]
[1751330132287,0.80335,2489.0,2488.8,0.80337]
[1751330132476,1.4213,2489.0,2488.6,3.2078]
[1751330132681,0.80337,2488.9,2488.7,4.394364]
[1751330132880,0.80339,2488.8,2488.7,6.454364]
[1751330133088,0.80338,2488.9,2488.8,0.80339]
[1751330133284,2.22465,2489.0,2488.8,0.80339]
[1751330133484,0.80336,2488.9,2488.8,0.80339]
[1751330133689,0.80328,2489.2,2488.8,2.32]
[1751330133884,0.8033,2489.1,2489.0,0.80331]
[1751330134085,0.80329,2489.2,2489.0,2.39]
[1751330134388,2.1712,2489.3,2489.0,3.19332]
[1751330134587,0.8033,2489.1,2489.0,2.39]
[1751330134884,0.8033,2489.1,2488.9,0.80334]
[1751330134885,0.80333,2489.0,2488.6,7.602164]
[1751330135083,0.80338,2488.9,2488.6,13.822164]
[1751330135383,2.1712,2489.3,2488.9,0.80336]
[1751330135590,0.80331,2489.1,2489.0,0.80332]
[1751330135790,0.80329,2489.2,2489.0,1.9]
[1751330135983,0.80329,2489.2,2489.1,0.8033]
[1751330136183,2.00794,2489.5,2489.1,0.8033]
[1751330136184,25.105,2489.7,2489.1,2.33]
[1751330136385,0.8032,2489.4,2489.3,4.394364]
[1751330136583,0.8032,2489.4,2489.3,3.97]
[1751330137388,2.00801,2489.4,2488.9,3.2078]
[1751330137683,0.80339,2488.8,2488.7,8.79789]
[1751330137887,0.80339,2488.8,2488.7,8.82789]
[1751330138080,0.80339,2488.8,2488.7,8.79789]
[1751330138484,0.80339,2488.8,2488.7,7.77918]
[1751330138485,7.20329,2488.8,2488.7,7.77918]
[1751330138792,7.20329,2488.8,2488.7,3.50425]
[1751330139289,2.20329,2488.8,2488.7,3.50425]
[1751330143587,13.89429,2488.8,2488.7,0.54481]
[1751330143788,0.80375,2487.7,2487.6,1.94974367]
[1751330143987,0.80375,2487.7,2487.6,2.99974367]
[1751330146092,0.80373,2487.8,2487.7,0.80374]
[1751330146286,0.80369,2487.9,2487.8,0.80372]
[1751330146589,3.2078,2488.0,2487.9,0.80369]
[1751330146794,0.80363,2488.1,2487.9,7.7778]
[1751330147096,0.80358,2488.3,2488.0,4.394364]
[1751330147296,0.80358,2488.3,2488.0,10.244364]
[1751330147594,0.80362,2488.1,2488.0,10.244364]
[1751330148189,0.8036,2488.2,2488.0,10.244364]
[1751330148494,3.2078,2488.4,2488.3,0.80356]
[1751330148691,9.66385384,2489.7,2488.3,0.80356]
[1751330148692,3.2078,2489.1,2488.6,0.80344]
[1751330148895,0.80339,2488.9,2488.7,5.197784]
[1751330149088,0.80339,2488.9,2488.7,7.487764]
[1751330149290,0.80339,2488.9,2488.8,0.80339]
[1751330149490,0.80336,2488.9,2488.8,4.14]
[1751330150192,3.98498737,2488.9,2488.8,12.54600543]
[1751330150798,3.98498737,2488.9,2488.8,8.79789]
[1751330151291,0.80336,2488.9,2488.8,8.79789]
[1751330151995,2.23446,2488.9,2488.8,8.79789]
[1751330152592,2.23446,2488.9,2488.8,11.10789]
[1751330152801,0.80336,2488.9,2488.8,11.10789]
[1751330154498,0.80336,2488.9,2488.8,8.79789]
[1751330154700,4.7878608,2488.9,2488.8,8.79789]
[1751330154893,6.2173608,2488.9,2488.8,8.79789]
[1751330155095,2.23286,2488.9,2488.8,8.79789]
[1751330155695,7.23286,2488.9,2488.8,8.79789]
[1751330156096,11.23920886,2488.9,2488.8,8.79789]
[1751330157002,4.00634886,2489.0,2488.8,10.70789]
[1751330157196,0.80336,2488.9,2488.8,10.70789]
[1751330157391,0.80336,2488.9,2488.8,8.79789]
[1751330157800,0.80336,2488.9,2488.8,11.16789]
[1751330157998,0.80336,2488.9,2488.8,8.79789]
[1751330158399,0.80336,2488.9,2488.8,11.09789]
[1751330158600,0.80336,2488.9,2488.8,11.90128]
[1751330158801,0.80336,2488.9,2488.8,8.79789]
[1751330158993,0.80336,2488.9,2488.8,10.75789]
[1751330159798,0.80336,2488.9,2488.8,8.79789]
[1751330160205,0.80336,2488.9,2488.8,8.40599813]
[1751330160406,0.80336,2489.0,2488.8,11.12937813]
[1751330160607,4.00783811,2488.9,2488.8,11.12937813]
[1751330160807,0.80336,2488.9,2488.8,11.12937813]
[1751330161000,4.00783196,2488.9,2488.8,11.12937813]
[1751330161201,4.80965886,2489.1,2488.8,10.32599813]
[1751330161505,3.2043395,2488.9,2488.8,11.12938813]
[1751330162607,3.2043395,2488.9,2488.8,15.52375213]
[1751330163410,3.2043395,2489.0,2488.9,0.80336]
[1751330163611,3.2043395,2489.0,2488.9,11.267724]
[1751330164511,3.2043395,2489.1,2489.0,0.80333]
[1751330164706,3.2043395,2489.1,2489.0,9.55113]
[1751330165308,3.2043395,2489.4,2489.0,17.15379813]
[1751330165607,0.80326,2489.3,2489.2,5.197594]
[1751330165806,0.80326,2489.3,2489.2,8.357594]
[1751330166008,0.80326,2489.3,2489.2,3.96327]
[1751330166312,4.00951984,2489.3,2489.2,3.16]
[1751330166811,0.80327,2489.2,2489.1,4.394364]
[1751330167202,0.8033,2489.1,2489.0,11.61379813]
[1751330167404,0.8033,2489.1,2489.0,13.94379813]
[1751330167604,0.8033,2489.1,2489.0,13.83379813]
[1751330167814,0.8033,2489.1,2489.0,8.40599813]
[1751330168018,5.41115984,2489.1,2489.0,8.40599813]
[1751330168607,11.599264,2489.1,2489.0,5.54088058]
[1751330168809,11.599264,2489.1,2489.0,5.8e-07]
[1751330168810,18.290264,2489.1,2489.0,5.8e-07]
[1751330169015,0.80364,2488.1,2487.9,1.6413]
[1751330169216,0.80365,2488.0,2487.9,1.8113]
[1751330169516,0.80358,2488.3,2488.1,0.80361]
[1751330169719,4.00694084,2488.4,2488.2,0.80358]
[1751330169907,0.80356,2488.3,2488.2,0.01]
[1751330170421,3.20340084,2488.4,2488.2,4.404364]
[1751330170615,3.20340084,2488.5,2488.4,0.80352]
[1751330171211,4.00689084,2488.5,2488.4,1.9]
[1751330171417,3.20340084,2488.5,2488.4,2.70352]
[1751330172117,3.20340084,2488.5,2488.4,11.50141]
[1751330172609,3.20340084,2488.5,2488.4,10.69789]
[1751330173421,3.20340084,2488.5,2488.4,11.50141]
[1751330174121,3.20340084,2488.5,2488.4,9.60141]
[1751330174316,3.20340084,2488.5,2488.4,12.48421]
[1751330174620,3.20340084,2488.5,2488.4,12.76421]
[1751330175022,4.00689084,2488.5,2488.4,9.64069]
[1751330175219,0.80349,2488.5,2488.4,11.90069]
[1751330175427,0.80349,2488.5,2488.4,12.70421]
[1751330175716,4.00676167,2488.5,2488.4,11.79069]
[1751330176113,0.80349,2488.5,2488.4,11.79069]
[1751330177515,0.80349,2488.5,2488.4,9.64069]
[1751330177923,0.80349,2488.5,2488.4,10.92789]
[1751330178321,0.80349,2488.5,2488.4,11.00789]
[1751330178624,0.80349,2488.5,2488.4,8.79789]
[1751330178818,0.80349,2488.5,2488.4,10.86789]
[1751330179024,0.80349,2488.5,2488.4,8.79789]
[1751330179324,0.80349,2488.5,2488.4,10.84789]
[1751330179724,26.4416,2488.8,2488.4,11.6514]
[1751330179924,4.01118,2488.9,2488.7,5.77374296]
[1751330180123,4.00661167,2489.0,2488.8,3.9961]
[1751330180326,0.80334,2489.0,2488.9,0.80336]
[1751330180624,0.80332,2489.1,2488.9,2.91336]
[1751330180819,0.8033,2489.1,2488.9,1.3196]
[1751330181015,0.80333,2489.0,2488.9,1.3196]
[1751330181324,0.80333,2489.0,2488.9,3.6596]
[1751330181518,0.80333,2489.0,2488.9,4.33296]
[1751330181919,0.80333,2489.0,2488.9,4.05296]
[1751330182318,3.20327167,2489.2,2488.9,3.2496]
[1751330182518,25.023,2489.2,2488.9,3.3496]
[1751330182824,0.80333,2489.0,2488.9,4.15295]
[1751330183322,0.80333,2489.0,2488.9,1.3196]
[1751330183521,0.80333,2489.0,2488.9,3.3596]
[1751330183818,0.80336,2488.9,2488.8,1.6452]
[1751330184026,0.80336,2488.9,2488.8,3.7552]
[1751330184220,0.80336,2488.9,2488.8,1.6452]
[1751330184721,0.80336,2488.9,2488.8,4.0052]
[1751330184928,0.80336,2488.9,2488.8,1.6452]
[1751330185119,0.80336,2488.9,2488.8,2.4486]
[1751330185328,0.80336,2488.9,2488.8,13.23649]
[1751330185528,0.80336,2488.9,2488.8,13.23648]
[1751330185930,0.80336,2488.9,2488.8,11.24648]
[1751330186124,0.80336,2488.9,2488.8,13.52648]
[1751330186324,0.80336,2488.9,2488.8,11.24648]
[1751330186633,0.80336,2488.9,2488.8,10.44309]
[1751330186822,0.80336,2488.9,2488.8,12.61309]
[1751330187022,0.80336,2488.9,2488.8,10.44309]
[1751330187227,3.2078,2489.1,2488.8,12.45309]
[1751330187430,25.01,2489.0,2488.9,0.80335]
[1751330187624,0.80336,2488.9,2488.8,10.44309]
[1751330187935,0.80336,2488.9,2488.8,8.79789]
[1751330188128,2.21356,2488.9,2488.8,8.79789]
[1751330188928,10.41683167,2488.9,2488.8,8.79789]
[1751330189326,7.21356,2488.9,2488.8,8.79789]
[1751330190332,7.21356,2488.9,2488.8,6.74288]
[1751330190631,11.21781105,2488.9,2488.8,3.3892]
[1751330190832,0.80369,2487.9,2487.8,2.31520364]
[1751330191137,25.03,2488.2,2487.9,0.80369]
[1751330191330,3.2078,2488.3,2487.9,2.92369]
[1751330191331,25.83165,2488.1,2487.9,2.92369]
[1751330191531,25.83165,2488.1,2488.0,0.8181]
[1751330191831,25.83165,2488.1,2488.0,0.8581]
[1751330192730,25.83165,2488.1,2488.0,0.04]
[1751330193534,2.00923,2487.9,2487.5,3.9979]
[1751330193838,0.80378,2487.6,2487.5,6.2579]
[1751330195931,0.80378,2487.6,2487.5,15.05579]
[1751330198039,4.01158,2487.6,2487.5,11.05789]
[1751330198347,10.41438,2487.6,2487.5,8.79789]
[1751330198539,11.14928,2487.6,2487.5,8.79789]
[1751330199840,30.43038,2487.6,2487.5,8.79789]
[1751330202848,35.43038,2487.6,2487.5,8.79789]
[1751330203149,30.43038,2487.6,2487.5,8.79789]
[1751330204438,30.43038,2487.6,2487.5,7.95168]
[1751330205050,5.41438,2487.6,2487.5,7.95168]
[1751330205242,29.03258,2487.6,2487.5,7.95168]
[1751330205439,4.01158,2487.6,2487.5,7.95168]
[1751330205645,29.03258,2487.6,2487.5,10.18168]
[1751330207548,29.03258,2487.6,2487.5,7.95168]
[1751330207749,4.01158,2487.6,2487.5,7.95168]
[1751330207952,29.03258,2487.6,2487.5,7.95168]
[1751330211956,38.4007705,2487.6,2487.5,7.95168]
[1751330212154,38.4007705,2487.6,2487.5,7.05641]
[1751330212460,38.4007705,2487.6,2487.5,6.24197]
[1751330212657,39.7773705,2487.6,2487.5,6.24197]
[1751330213557,80.5773705,2487.6,2487.5,6.24197]
[1751330214453,76.20918,2487.6,2487.5,6.24197]
[1751330214853,71.20918,2487.6,2487.5,6.24197]
[1751330215854,46.18818,2487.6,2487.5,6.24197]
[1751330216057,29.03558,2487.6,2487.5,6.24197]
[1751330218159,29.03558,2487.6,2487.5,5.84982593]
[1751330218557,33.03914184,2487.6,2487.5,5.84982593]
[1751330220458,29.03558,2487.6,2487.5,5.84982593]
[1751330220760,34.03558,2487.6,2487.5,4.82064593]
[1751330220957,35.42188,2487.6,2487.5,0.89130593]
[1751330221761,76.22188,2487.6,2487.5,0.89130593]
[1751330221960,76.22188,2487.6,2487.5,5.93e-06]
[1751330222162,0.80401,2486.9,2486.8,0.7179]
[1751330222460,28.2245517,2486.9,2486.0,3.2078]
[1751330222658,0.80427,2486.1,2486.0,7.9778]
[1751330222966,25.82827,2486.1,2486.0,7.9778]
[1751330223462,25.024,2486.1,2486.0,7.9778]
[1751330223863,25.024,2486.1,2486.0,9.3589]
[1751330224064,25.024,2486.1,2486.0,10.1632]
[1751330224262,25.024,2486.1,2486.0,9.3589]
[1751330224458,25.82827,2486.1,2486.0,6.1511]
[1751330225160,25.82827,2486.1,2486.0,14.94899]
[1751330225463,3.2005517,2486.3,2486.0,15.75327]
[1751330225662,0.80422,2486.3,2486.0,15.75327]
[1751330225961,0.80424,2486.2,2486.0,14.94899]
[1751330226157,25.025,2486.1,2486.0,14.94899]
[1751330227063,0.80422,2486.3,2486.0,15.75329]
[1751330227257,25.82927,2486.1,2486.0,14.94899]
[1751330227764,25.82927,2486.1,2486.0,15.75328]
[1751330227765,25.025,2486.1,2486.0,15.75328]
[1751330227961,25.82927,2486.1,2486.0,14.94899]
[1751330228267,25.83127,2486.1,2486.0,14.94899]
[1751330228656,25.83127,2486.1,2486.0,15.75326]
[1751330228657,25.027,2486.1,2486.0,15.75326]
[1751330229169,25.83127,2486.1,2486.0,14.94899]
[1751330230567,25.027,2486.1,2486.0,15.75329]
[1751330230762,25.83127,2486.1,2486.0,15.75329]
[1751330231166,25.83127,2486.1,2486.0,14.94899]
[1751330232969,25.83127,2486.1,2486.0,15.75329]
[1751330233264,5.2796517,2486.8,2486.0,15.75329]
[1751330233265,5.21811,2486.6,2486.2,0.80424]
[1751330233466,0.80417,2486.4,2486.3,2.2041]
[1751330233675,0.80417,2486.4,2486.3,2.7154]
[1751330234372,0.80417,2486.4,2486.3,1.93]
[1751330234768,0.80427,2486.1,2486.0,9.55689]
[1751330234968,25.83227,2486.1,2486.0,12.21559]
[1751330236166,25.83227,2486.1,2486.0,10.03789]
[1751330238966,25.83127,2486.1,2486.0,10.03789]
[1751330239169,25.83127,2486.1,2486.0,8.79789]
[1751330239569,33.70767,2486.1,2486.0,8.79789]
[1751330241168,45.34467,2486.1,2486.0,8.79789]
[1751330241371,40.34467,2486.1,2486.0,8.79789]
[1751330242673,47.01867,2486.1,2486.0,8.79789]
[1751330243063,0.80427,2486.1,2486.0,8.79789]
[1751330243263,37.47127,2486.1,2486.0,8.40552231]
[1751330243967,0.80427,2486.1,2486.0,8.40552231]
[1751330244169,37.47027,2486.1,2486.0,8.40552231]
[1751330244370,25.83227,2486.1,2486.0,10.65552231]
[1751330244565,25.027,2486.1,2486.0,10.67552231]
[1751330244771,3.2078,2486.2,2486.1,0.80427]
[1751330244977,0.80421,2486.3,2486.1,5.1907]
[1751330245274,25.027,2486.2,2486.1,14.41062231]
[1751330245473,25.83124,2486.2,2486.1,14.41062231]
[1751330245675,25.027,2486.2,2486.1,14.41062231]
[1751330245879,25.027,2486.2,2486.1,15.21489231]
[1751330246077,25.027,2486.2,2486.1,14.41062231]
[1751330246078,25.83124,2486.2,2486.1,14.41062231]
[1751330246277,14.8458,2486.5,2486.1,14.41062231]
[1751330246476,0.8042,2486.3,2486.2,1.3107]
[1751330246679,0.8042,2486.3,2486.2,3.5707]
[1751330246877,0.8042,2486.3,2486.2,1.3107]
[1751330247581,0.8042,2486.3,2486.2,3.5107]
[1751330247776,0.8042,2486.3,2486.2,1.3107]
[1751330247972,0.80424,2486.2,2486.1,8.40552231]
[1751330248472,4.01204,2486.2,2486.1,8.40552231]
[1751330250892,8.3802305,2486.2,2486.1,8.40552231]
[1751330251192,13.3802305,2486.2,2486.1,8.40552231]
[1751330251584,15.5106305,2486.2,2486.1,8.40552231]
[1751330251983,10.5106305,2486.2,2486.1,8.40552231]
[1751330252289,40.66904,2486.2,2486.1,7.88238014]
[1751330252495,4.01204,2486.2,2486.1,7.88238014]
[1751330252995,25.82824,2486.2,2486.1,7.88238014]
[1751330253288,25.82824,2486.2,2486.1,7.49006716]
[1751330253488,3.2005517,2486.4,2486.1,7.49006716]
[1751330253688,25.82822,2486.3,2486.2,0.7697]
[1751330253894,25.82822,2486.3,2486.2,2.9392]
[1751330254088,6.4083517,2486.5,2486.2,11.04343]
[1751330254286,25.82817,2486.4,2486.3,1.3535]
[1751330255296,25.82817,2486.4,2486.3,8.84356716]
[1751330257996,25.024,2486.4,2486.3,11.07356716]
[1751330258188,25.024,2486.4,2486.3,8.84356716]
[1751330258390,8.01263963,2486.5,2486.3,11.79775716]
[1751330258688,7.20848963,2486.5,2486.4,0.80417]
[1751330258894,7.20848963,2486.5,2486.4,6.45837]
[1751330259097,28.2288,2486.5,2486.4,11.45837]
[1751330259692,29.03294,2486.5,2486.4,11.45837]
[1751330259893,3.2078,2486.5,2486.4,11.45837]
[1751330260090,4.00068963,2486.7,2486.6,0.80411]
[1751330260292,4.80475963,2486.7,2486.6,2.87411]
[1751330260597,29.82575963,2486.7,2486.6,2.87411]
[1751330260899,25.82507,2486.7,2486.6,4.17101]
[1751330261201,29.02572249,2486.7,2486.6,4.17101]
[1751330261693,29.02572249,2486.7,2486.6,3.3669]
[1751330262198,25.82307,2486.7,2486.6,3.3669]
[1751330262897,25.82307,2486.7,2486.6,4.17101]
[1751330264995,25.82307,2486.7,2486.6,3.3669]
[1751330265199,25.82307,2486.7,2486.6,10.85696716]
[1751330265402,25.019,2486.7,2486.6,11.66107716]
[1751330267501,4.01174,2487.2,2487.1,0.80394]
[1751330267697,29.02474,2487.2,2487.1,3.02394]
[1751330268201,0.80394,2487.1,2487.0,2.11706]
[1751330268398,0.80394,2487.1,2487.0,4.27706]
[1751330268695,0.80394,2487.1,2487.0,1.3131]
[1751330268901,0.80394,2487.1,2487.0,3.5631]
[1751330269306,0.80394,2487.1,2487.0,1.3131]
[1751330269500,0.80394,2487.1,2487.0,4.20708]
[1751330270299,0.80394,2487.1,2487.0,11.69714716]
[1751330270604,29.02474,2487.2,2487.1,0.80394]
[1751330270804,29.02474,2487.2,2487.1,3.07394]
[1751330271705,28.2208,2487.2,2487.1,3.07394]
[1751330271999,29.02471,2487.2,2487.1,0.80394]
[1751330272203,0.80394,2487.1,2487.0,9.60711716]
[1751330272406,0.80394,2487.1,2487.0,11.98711716]
[1751330272604,0.80394,2487.1,2487.0,9.60711716]
[1751330272810,29.02473,2487.2,2487.1,0.80394]
[1751330273005,29.02473,2487.2,2487.1,2.87394]
[1751330273202,4.01173,2487.2,2487.1,0.80394]
[1751330273403,28.2148,2487.2,2487.1,0.80394]
[1751330273607,3.2078,2487.2,2487.1,2.98394]
[1751330273803,28.2148,2487.2,2487.1,2.98394]
[1751330274799,25.007,2487.2,2487.1,2.98394]
[1751330275207,25.007,2487.2,2487.1,10.47400716]
[1751330275408,0.80388,2487.3,2487.2,0.80391]
[1751330275608,0.80387,2487.4,2487.3,0.80385]
[1751330275809,25.80987,2487.4,2487.3,6.62095]
[1751330276308,25.80987,2487.4,2487.3,1.3871]
[1751330276507,25.80987,2487.4,2487.3,0.80388]
[1751330276908,25.80987,2487.4,2487.3,3.04388]
[1751330277108,25.80987,2487.4,2487.3,0.80388]
[1751330277606,25.80987,2487.4,2487.3,2.03]
[1751330277810,3.2078,2487.5,2487.3,2.03]
[1751330278001,3.2078,2487.5,2487.4,1.57725]
[1751330278304,0.80381,2487.6,2487.5,0.80381]
[1751330278508,0.80381,2487.6,2487.5,6.00371]
[1751330278709,0.80377,2487.7,2487.6,0.80377]
[1751330279012,25.80577,2487.7,2487.6,0.80377]
[1751330279204,25.80477,2487.7,2487.6,0.80377]
[1751330279709,25.80477,2487.7,2487.6,3.00377]
[1751330280210,25.80477,2487.7,2487.6,10.49383716]
[1751330281111,0.80377,2487.7,2487.6,10.49383716]
[1751330281303,24.999,2487.7,2487.6,10.49384716]
[1751330281507,0.8037,2487.9,2487.8,0.80372]
[1751330281706,0.8037,2487.9,2487.8,0.41167193]
[1751330281907,25.8027,2487.9,2487.8,0.41167193]
[1751330282106,25.8027,2487.9,2487.8,2.75167193]
[1751330282411,0.80375,2487.7,2487.6,7.49006716]
[1751330282615,0.80375,2487.7,2487.6,10.45384716]
[1751330282815,0.80375,2487.7,2487.6,8.29384716]
[1751330283307,0.80374,2487.8,2487.7,0.80373]
[1751330283508,0.80375,2487.7,2487.6,8.29383716]